bitfinex/quotes_ETHUSD_20241013
["timestamp","ask_amount","ask_price","bid_price","bid_amount"]
[1728807682242,4.88817722,2474.5,2474.0,5.25529474]
[1728807682419,4.88817722,2474.5,2474.0,3.76960766]
[1728807683419,6.3738643,2474.5,2474.0,3.76960766]
[1728807684063,1.48568708,2474.4,2474.0,3.76960766]
[1728807684373,1.48568708,2474.4,2474.0,3.0]
[1728807684515,5.52708708,2474.4,2474.0,3.0]
[1728807685117,1.48568708,2474.4,2474.0,3.0]
[1728807685457,2.3326243,2474.4,2474.0,3.0]
[1728807685658,1.48568708,2474.4,2474.0,3.0]
[1728807685860,2.3326243,2474.4,2474.0,3.0]
[1728807686517,0.84693722,2474.4,2474.0,3.0]
[1728807689321,0.84693722,2474.4,2474.0,7.0419]
[1728807689516,0.84693722,2474.4,2474.0,8.38174371]
[1728807689723,2.75812291,2474.5,2474.3,0.7518]
[1728807689724,0.84693722,2474.5,2474.3,0.7518]
[1728807691264,0.84693722,2474.6,2474.3,0.7518]
[1728807691465,0.84693722,2474.5,2474.3,4.7933]
[1728807691660,0.84693722,2474.5,2474.3,6.12537271]
[1728807692493,0.84693722,2474.5,2474.4,7.04138]
[1728807692675,0.84693722,2474.6,2474.4,7.04138]
[1728807693039,0.84693722,2474.6,2474.5,0.7518]
[1728807694052,0.84693722,2474.6,2474.5,4.79302]
[1728807695014,0.84693722,2474.6,2474.5,6.10967927]
[1728807696740,1.27243583,2474.8,2474.6,4.04105]
[1728807696957,0.84889519,2474.7,2474.6,4.04105]
[1728807697388,0.84889519,2474.7,2474.6,4.59105]
[1728807697543,0.84889519,2474.8,2474.6,6.10969064]
[1728807699068,0.84889519,2474.8,2474.6,2.06864064]
[1728807700226,0.84889519,2474.9,2474.8,1.3018]
[1728807700517,0.84889519,2475.1,2474.9,7.04056]
[1728807700716,0.84889519,2475.1,2475.0,3.0]
[1728807700875,0.84889519,2475.1,2475.0,3.7518]
[1728807701080,0.84889519,2475.2,2475.0,3.7518]
[1728807701312,0.84889519,2475.2,2475.0,7.79209]
[1728807701496,0.84889519,2475.2,2475.1,1.90194127]
[1728807701705,0.84889519,2475.3,2475.1,1.90194127]
[1728807702307,0.84889519,2475.3,2475.2,0.7518]
[1728807702876,0.84889519,2475.4,2475.2,0.7518]
[1728807704216,1.27243583,2475.5,2475.2,0.7518]
[1728807704217,0.84889519,2475.5,2475.2,0.7518]
[1728807704437,0.84889519,2475.5,2475.3,4.58991]
[1728807704574,0.84889519,2475.6,2475.3,0.55]
[1728807705624,2.33458227,2475.7,2475.3,0.55]
[1728807706982,2.33458227,2475.6,2475.2,1.86975584]
[1728807708113,0.84889519,2475.7,2475.4,0.55]
[1728807708286,2.33458227,2475.8,2475.4,0.55]
[1728807708786,0.84889519,2475.8,2475.4,0.55]
[1728807709531,2.33458227,2475.8,2475.4,0.55]
[1728807709704,1.48568708,2475.7,2475.3,0.55]
[1728807713037,1.48568708,2475.6,2475.3,0.55]
[1728807713190,1.48568708,2475.6,2475.3,0.9555]
[1728807714512,1.65999519,2475.9,2475.3,6.48109708]
[1728807714846,8.79568708,2476.0,2475.4,4.8457]
[1728807715221,1.48568708,2475.9,2475.4,4.8457]
[1728807715618,7.31,2476.0,2475.4,4.8457]
[1728807715619,8.79568708,2476.0,2475.4,4.8457]
[1728807715950,1.48568708,2475.9,2475.4,4.8457]
[1728807716146,1.48568708,2475.9,2475.4,6.38070868]
[1728807716502,1.48568708,2475.9,2475.4,5.34100868]
[1728807717210,1.48568708,2475.9,2475.4,9.38073868]
[1728807717520,8.15889519,2476.3,2475.7,0.55]
[1728807717820,1.48568708,2476.1,2475.7,0.55]
[1728807719235,0.84889519,2476.4,2475.9,0.55]
[1728807719436,1.48568708,2476.4,2475.9,4.58893]
[1728807719634,0.84889519,2476.5,2475.9,4.58893]
[1728807719635,1.48568708,2476.3,2475.9,4.58893]
[1728807719839,1.48568708,2476.4,2475.9,4.58893]
[1728807720453,1.48568708,2476.3,2475.9,0.55]
[1728807721258,1.48568708,2476.2,2475.9,0.55]
[1728807721458,1.48568708,2476.2,2475.8,3.806]
[1728807722713,1.48568708,2476.0,2475.8,0.806]
[1728807723352,1.48568708,2476.0,2475.6,3.0]
[1728807723557,1.48568708,2476.1,2475.7,0.55]
[1728807723757,4.03844,2476.2,2475.7,0.55]
[1728807723758,1.48568708,2476.3,2476.0,0.806]
[1728807725757,1.48568708,2476.2,2476.0,0.806]
[1728807726464,0.8266,2476.0,2475.6,0.806]
[1728807726760,1.48568708,2475.7,2475.4,0.806]
[1728807728152,1.48568708,2475.6,2475.2,3.8157]
[1728807728529,8.07833,2475.8,2475.2,3.8157]
[1728807728530,4.03926,2475.7,2475.2,3.8157]
[1728807728730,4.03926,2475.7,2475.2,4.601284]
[1728807728949,4.03926,2475.7,2475.3,0.55]
[1728807729159,4.0391,2475.8,2475.3,0.55]
[1728807730479,8.07835,2475.8,2475.3,0.55]
[1728807730649,4.0391,2475.8,2475.3,0.55]
[1728807730852,4.03926,2475.7,2475.3,0.55]
[1728807732075,4.0391,2475.8,2475.3,0.55]
[1728807732450,8.07833,2475.8,2475.3,0.55]
[1728807732855,4.0391,2475.8,2475.3,0.55]
[1728807733180,0.8046,2475.7,2475.3,0.55]
[1728807734752,4.84396,2475.7,2475.2,3.8157]
[1728807735439,4.03946,2475.6,2475.2,0.8157]
[1728807735643,4.03946,2475.6,2475.0,3.8157]
[1728807735644,7.48385932,2475.6,2475.0,3.8157]
[1728807735865,4.03978,2475.4,2474.8,0.8157]
[1728807736056,7.48417932,2475.4,2474.8,0.8157]
[1728807736376,4.04008,2475.2,2474.8,0.8157]
[1728807736702,0.8046,2475.1,2474.6,0.8157]
[1728807737081,4.04041,2475.0,2474.4,0.8157]
[1728807737621,4.04041,2475.0,2474.4,3.8157]
[1728807737924,7.48480932,2475.0,2474.4,0.8157]
[1728807738304,0.84889519,2475.3,2474.8,0.8157]
[1728807738604,4.88878519,2475.4,2474.8,5.342023]
[1728807738812,0.84889519,2475.4,2474.9,4.04055]
[1728807739106,0.8046,2475.5,2474.9,4.04055]
[1728807739107,5.69308519,2475.5,2474.9,4.04055]
[1728807740301,0.84889519,2475.4,2474.9,4.04055]
[1728807740962,0.84889519,2475.4,2475.0,3.0]
[1728807741165,1.65349519,2475.5,2475.0,3.0]
[1728807741492,0.84889519,2475.6,2475.1,5.40592]
[1728807742961,0.84889519,2475.7,2475.5,4.03958]
[1728807743168,0.84889519,2475.8,2475.6,0.8157]
[1728807743489,0.84889519,2476.0,2475.7,0.55]
[1728807744808,0.84889519,2476.0,2475.6,0.8157]
[1728807745011,1.89901077,2475.9,2475.4,4.85533]
[1728807745165,1.89924504,2475.8,2475.4,4.85533]
[1728807745364,0.84889519,2475.8,2475.4,0.8157]
[1728807747298,1.89958501,2475.7,2475.4,0.8157]
[1728807747623,0.84889519,2475.7,2475.4,0.8157]
[1728807747826,0.84889519,2475.7,2475.3,0.55]
[1728807749222,1.89974238,2475.6,2475.3,0.55]
[1728807749526,0.84889519,2475.6,2475.3,0.55]
[1728807749685,0.84889519,2475.7,2475.3,0.55]
[1728807750126,1.05089108,2475.6,2475.3,0.55]
[1728807750339,1.89978627,2475.6,2475.3,0.55]
[1728807750486,0.84889519,2475.6,2475.3,0.55]
[1728807750686,0.84889519,2475.7,2475.3,0.55]
[1728807751010,5.31163583,2475.8,2475.2,7.79425]
[1728807751011,1.89980976,2475.6,2475.2,7.79425]
[1728807751215,1.61529519,2475.6,2475.2,7.79425]
[1728807752526,1.61529519,2475.6,2475.2,9.06892257]
[1728807752684,0.84889519,2475.7,2475.5,0.55]
[1728807752889,0.84889519,2475.8,2475.6,0.7543]
[1728807759588,0.84889519,2475.8,2475.4,4.79393]
[1728807762392,0.84889519,2475.8,2475.4,6.10478926]
[1728807765266,0.84889519,2475.8,2475.4,4.79393]
[1728807765762,0.84889519,2475.8,2475.4,0.7543]
[1728807766087,0.84889519,2475.8,2475.4,3.7543]
[1728807767602,1.05108904,2475.7,2475.4,3.7543]
[1728807767793,0.84889519,2475.7,2475.3,3.88778856]
[1728807767974,0.84889519,2475.7,2475.3,3.7613]
[1728807768147,1.66429519,2475.7,2475.3,3.7613]
[1728807769447,1.66429519,2475.7,2475.3,3.0]
[1728807770403,1.66429519,2475.7,2475.3,3.12649147]
[1728807770556,1.66429519,2475.7,2475.3,3.0]
[1728807771396,1.90046155,2475.6,2475.3,3.12649167]
[1728807771594,0.84889519,2475.6,2475.3,3.12649167]
[1728807772345,0.84889519,2475.6,2475.3,3.0]
[1728807776609,1.90069656,2475.5,2475.1,3.7613]
[1728807776806,0.84889519,2475.5,2475.2,0.12650244]
[1728807776967,0.84889519,2475.5,2475.2,0.12650255]
[1728807777310,0.84889519,2475.5,2475.1,7.80153]
[1728807777607,0.84889519,2475.5,2475.2,0.1265019]
[1728807777793,0.84889519,2475.5,2475.1,8.56909141]
[1728807778006,0.8154,2475.4,2474.9,0.7613]
[1728807778183,2.3325262,2475.3,2474.9,0.55]
[1728807778392,1.48363101,2475.2,2474.7,0.7613]
[1728807778712,0.8154,2475.1,2474.7,0.7613]
[1728807778870,1.66429519,2475.1,2474.7,0.7613]
[1728807779065,1.66429519,2475.1,2474.6,4.04094]
[1728807779507,1.66429519,2475.1,2474.6,5.52457101]
[1728807779805,1.66429519,2475.1,2474.7,3.0]
[1728807780612,1.66429519,2475.1,2474.7,4.48363101]
[1728807780795,1.66429519,2475.1,2474.7,3.0]
[1728807780992,1.66429519,2475.1,2474.7,4.48363101]
[1728807781589,1.66429519,2475.1,2474.7,3.0]
[1728807781794,1.66429519,2475.1,2474.7,3.79385235]
[1728807783036,1.48363101,2474.9,2474.5,7.04121]
[1728807783241,0.8154,2474.8,2474.5,3.0]
[1728807783532,2.29903101,2474.8,2474.5,3.0]
[1728807783681,0.8154,2474.8,2474.5,3.0]
[1728807787482,0.8154,2474.8,2474.5,3.9286231]
[1728807795621,1.48363101,2474.6,2474.2,4.0416]
[1728807795821,1.48363101,2474.5,2474.2,4.0416]
[1728807796020,1.48363101,2474.6,2474.2,4.0416]
[1728807796848,1.48363101,2474.6,2474.3,3.0]
[1728807798073,2.24373101,2474.7,2474.3,3.0]
[1728807799786,1.48363101,2474.6,2474.3,3.0]
[1728807800782,2.24373101,2474.7,2474.3,3.0]
[1728807800991,2.24373101,2474.7,2474.3,4.2566821]
[1728807801189,0.7601,2474.7,2474.4,4.04136]
[1728807803579,2.24373101,2474.7,2474.4,4.04136]
[1728807804795,0.7601,2474.7,2474.4,4.04136]
[1728807805864,2.24373101,2474.7,2474.4,4.04136]
[1728807807259,0.7601,2474.7,2474.4,4.04136]
[1728807807840,2.24373101,2474.7,2474.4,4.04136]
[1728807808155,0.7601,2474.7,2474.4,4.04136]
[1728807810459,0.7101,2474.7,2474.4,4.04136]
[1728807811281,1.48363101,2474.6,2474.3,3.0]
[1728807812081,1.48363101,2474.5,2474.2,0.55]
[1728807813015,1.48363101,2474.3,2473.8,5.21600464]
[1728807813222,1.48363101,2474.3,2473.9,3.52160046]
[1728807813731,0.7644,2474.2,2473.9,3.52160046]
[1728807814120,0.7644,2474.2,2473.9,7.56378046]
[1728807816715,0.7644,2474.2,2473.9,3.52160046]
[1728807816916,0.7644,2474.2,2473.9,3.0]
[1728807817215,0.7644,2474.2,2473.9,7.04219]
[1728807817420,0.7644,2474.2,2473.9,3.0]
[1728807820751,2.24803101,2474.2,2473.9,3.0]
[1728807821060,0.7644,2474.2,2473.9,3.0]
[1728807821462,0.7644,2474.2,2473.9,7.04219]
[1728807821786,2.24803101,2474.2,2473.9,3.98541363]
[1728807821924,2.24803101,2474.2,2473.9,3.0]
[1728807822551,1.48363101,2474.1,2473.8,0.7629]
[1728807822757,1.48363101,2473.9,2473.7,3.0]
[1728807822979,2.24803101,2473.9,2473.7,0.55]
[1728807824123,2.24803101,2473.9,2473.7,3.55]
[1728807824464,2.24803101,2473.9,2473.7,3.0]
[1728807824650,2.24803101,2473.9,2473.5,3.30139987]
[1728807824849,2.24803101,2473.9,2473.5,5.03052511]
[1728807825220,2.24803101,2473.9,2473.5,9.07336363]
[1728807825425,0.7644,2473.9,2473.7,3.0]
[1728807827557,0.84889519,2474.1,2473.8,0.55]
[1728807827838,1.48363101,2474.2,2473.8,5.40363]
[1728807828161,1.60659519,2474.3,2473.8,6.80470123]
[1728807828479,1.60659519,2474.5,2474.2,4.04157]
[1728807828665,1.60659519,2474.5,2474.3,4.04151]
[1728807828868,1.60659519,2474.5,2474.2,4.85297]
[1728807828869,0.7577,2474.5,2474.2,4.85297]
[1728807829327,0.7577,2474.5,2474.3,4.04154]
[1728807829834,0.7577,2474.5,2474.2,4.85297]
[1728807831243,0.7577,2474.5,2474.2,4.04157]
[1728807831653,2.24133101,2474.5,2474.2,4.04157]
[1728807832947,0.7577,2474.5,2474.2,4.04157]
[1728807834304,2.24133101,2474.5,2474.2,4.04157]
[1728807834638,0.7577,2474.5,2474.2,4.04157]
[1728807834842,2.65838532,2474.5,2474.2,4.04157]
[1728807835144,0.7577,2474.5,2474.2,4.04157]
[1728807836137,2.65845068,2474.5,2474.2,4.04157]
[1728807836337,1.60659519,2474.5,2474.2,4.04157]
[1728807836938,0.7577,2474.5,2474.2,4.04157]
[1728807838174,0.7577,2474.5,2474.2,4.16812183]
[1728807838375,0.7577,2474.5,2474.2,4.04157]
[1728807839178,1.80978268,2474.5,2474.2,4.04157]
[1728807839381,1.60659519,2474.5,2474.2,4.04157]
[1728807839753,0.7577,2474.5,2474.3,4.04152]
[1728807839965,1.60659519,2474.5,2474.3,4.04152]
[1728807840236,0.7577,2474.5,2474.3,4.16806852]
[1728807840485,0.84889519,2474.6,2474.4,4.04138]
[1728807840787,0.84889519,2474.6,2474.4,8.08265]
[1728807840957,1.60659519,2474.7,2474.4,4.04127]
[1728807843785,1.60659519,2474.7,2474.4,8.08255]
[1728807843962,0.84889519,2474.7,2474.4,4.04127]
[1728807844865,0.84889519,2474.7,2474.5,7.04118]
[1728807845177,1.27243583,2474.8,2474.5,7.04118]
[1728807845178,0.84889519,2474.8,2474.5,7.04118]
[1728807845647,0.84889519,2474.8,2474.5,3.0]
[1728807846954,2.3325262,2474.8,2474.5,7.04121]
[1728807847262,2.3325262,2474.8,2474.5,3.0]
[1728807847460,0.84889519,2474.8,2474.5,3.0]
[1728807847678,2.3325262,2474.8,2474.5,3.0]
[1728807849971,0.84889519,2474.8,2474.5,3.0]
[1728807850192,0.84889519,2474.8,2474.5,7.04115]
[1728807850369,0.84889519,2474.8,2474.5,7.16768532]
[1728807850572,0.84889519,2474.8,2474.5,7.04115]
[1728807850756,0.84889519,2474.8,2474.5,7.16768628]
[1728807850955,0.84889519,2474.8,2474.5,7.04115]
[1728807852000,2.3325262,2474.8,2474.5,3.0]
[1728807852769,1.48363101,2474.7,2474.5,3.0]
[1728807853883,2.3325262,2474.8,2474.5,3.0]
[1728807854962,1.48363101,2474.7,2474.5,3.0]
[1728807855165,1.48363101,2474.7,2474.4,4.16780853]
[1728807855166,1.48363101,2474.7,2474.4,0.12653853]
[1728807855583,2.25923101,2474.6,2474.4,0.12653853]
[1728807856879,2.25923101,2474.6,2474.4,0.55]
[1728807857197,2.25923101,2474.6,2474.4,0.67653993]
[1728807858303,2.25923101,2474.6,2474.4,0.55]
[1728807858476,0.7756,2474.6,2474.4,0.55]
[1728807858671,0.7756,2474.6,2474.4,0.67653938]
[1728807859202,0.7756,2474.6,2474.4,0.55]
[1728807859717,2.25923101,2474.6,2474.4,0.55]
[1728807860023,2.25923101,2474.6,2474.3,3.12653913]
[1728807860024,1.48363101,2474.5,2474.3,3.12653913]
[1728807860330,1.48363101,2474.5,2474.3,3.0]
[1728807862967,0.8058,2474.3,2474.2,0.12655274]
[1728807863165,0.8058,2474.3,2474.0,4.16848274]
[1728807863166,2.28943101,2474.3,2474.0,4.16848274]
[1728807863602,2.28943101,2474.3,2474.0,4.04193]
[1728807863898,2.28943101,2474.3,2474.0,4.16848274]
[1728807864100,2.28943101,2474.3,2474.0,4.04193]
[1728807864327,1.48363101,2474.2,2474.1,3.0]
[1728807864884,1.48363101,2474.2,2473.9,7.16869114]
[1728807865125,1.48363101,2474.1,2473.9,3.12656114]
[1728807865284,1.48363101,2474.2,2473.9,3.12656114]
[1728807865675,1.48363101,2474.2,2473.9,3.0]
[1728807865921,1.48363101,2474.2,2473.9,3.12656551]
[1728807866285,1.48363101,2474.0,2473.9,0.12656551]
[1728807866489,2.28943101,2474.0,2473.9,0.12657182]
[1728807866827,2.28943101,2474.0,2473.8,3.12657182]
[1728807867376,2.28943101,2474.0,2473.8,7.04235]
[1728807867620,0.8058,2474.0,2473.8,7.04235]
[1728807867822,0.8058,2474.0,2473.8,7.16892339]
[1728807868184,0.8058,2474.0,2473.8,7.04235]
[1728807868385,0.8058,2474.0,2473.8,7.16892288]
[1728807868630,0.8058,2474.0,2473.8,7.04235]
[1728807868930,0.8058,2474.0,2473.8,7.16892288]
[1728807869098,0.8058,2474.0,2473.8,7.04235]
[1728807869299,0.8058,2474.0,2473.8,7.16892288]
[1728807869489,0.8058,2474.0,2473.8,7.04235]
[1728807870120,3.1593262,2474.2,2473.8,7.04235]
[1728807870432,1.67569519,2474.2,2473.9,4.04217]
[1728807870745,0.84889519,2474.3,2474.2,4.04171]
[1728807870887,1.67569519,2474.5,2474.2,4.04171]
[1728807871331,1.67569519,2474.5,2474.3,4.04152]
[1728807871486,3.1593262,2474.5,2474.1,4.71833001]
[1728807871742,3.1593262,2474.5,2474.2,4.04162]
[1728807873026,1.90110567,2474.4,2474.2,4.04162]
[1728807873193,0.84889519,2474.4,2474.2,4.04162]
[1728807874135,0.84889519,2474.4,2474.3,4.04154]
[1728807874642,1.90129627,2474.4,2474.3,4.04154]
[1728807875751,3.38492728,2474.4,2474.1,5.2890061]
[1728807875956,2.3325262,2474.4,2474.1,4.04177]
[1728807880060,2.3325262,2474.4,2474.1,4.16833137]
[1728807880363,2.3325262,2474.4,2474.1,4.04177]
[1728807880527,2.3325262,2474.4,2474.1,4.16833137]
[1728807880733,2.3325262,2474.4,2474.1,4.04177]
[1728807880960,2.3325262,2474.4,2474.1,4.16833137]
[1728807881262,2.3325262,2474.4,2474.1,4.04177]
[1728807881410,2.3325262,2474.4,2474.1,4.16833137]
[1728807881615,2.3325262,2474.4,2474.1,4.04177]
[1728807881812,2.3325262,2474.4,2474.1,4.16833137]
[1728807882160,2.3325262,2474.4,2474.1,4.04177]
[1728807882307,2.3325262,2474.4,2474.1,4.16833137]
[1728807882513,2.3325262,2474.4,2474.1,4.04177]
[1728807885764,2.3325262,2474.4,2474.1,4.1683313]
[1728807885909,2.3325262,2474.4,2474.1,4.04177]
[1728807886108,2.3325262,2474.4,2474.1,4.1683313]
[1728807886315,2.3325262,2474.4,2474.1,4.04177]
[1728807886557,2.3325262,2474.4,2474.1,4.1683313]
[1728807886768,2.3325262,2474.4,2474.1,4.04177]
[1728807886970,1.48363101,2474.3,2474.1,0.1265613]
[1728807887299,1.48363101,2474.3,2474.0,3.12656177]
[1728807887581,1.48363101,2474.3,2474.0,3.0]
[1728807887740,1.48363101,2474.2,2474.0,3.0]
[1728807888086,1.48363101,2474.1,2473.8,3.30156779]
[1728807888378,1.48363101,2474.0,2473.8,3.0]
[1728807888555,1.48363101,2474.0,2473.8,0.12657819]
[1728807888739,1.48363101,2474.0,2473.6,7.34423266]
[1728807888941,1.48363101,2474.0,2473.7,0.12657578]
[1728807889137,1.48363101,2474.0,2473.8,3.12657578]
[1728807889385,1.48363101,2474.0,2473.8,3.12657574]
[1728807889538,1.48363101,2474.0,2473.8,3.0]
[1728807890366,1.48363101,2474.0,2473.8,3.12657563]
[1728807890969,1.48363101,2474.1,2473.8,3.12657563]
[1728807891383,1.48363101,2474.1,2473.8,3.0]
[1728807891554,1.48363101,2474.1,2473.8,3.1265756]
[1728807892075,1.48363101,2474.1,2473.8,3.12657561]
[1728807893081,1.48363101,2474.0,2473.8,3.12657561]
[1728807893239,2.26093101,2473.9,2473.6,4.70688968]
[1728807893438,2.26093101,2473.9,2473.7,0.12657849]
[1728807893439,0.7773,2473.9,2473.7,0.12657849]
[1728807893669,0.7773,2473.9,2473.6,7.34423692]
[1728807893868,0.7773,2473.9,2473.7,0.12657675]
[1728807894142,0.7773,2473.9,2473.6,7.34423692]
[1728807894347,0.7773,2473.9,2473.7,0.12657694]
[1728807894552,0.7773,2473.9,2473.6,8.74952111]
[1728807894755,0.7773,2473.9,2473.7,0.12657698]
[1728807894988,0.7773,2473.9,2473.6,8.74952111]
[1728807895181,0.84889519,2474.1,2473.7,0.12657761]
[1728807895387,2.3325262,2474.2,2473.8,4.95180761]
[1728807896180,1.48363101,2474.1,2473.8,3.90947761]
[1728807896346,1.48363101,2474.1,2473.8,3.12657761]
[1728807897277,1.48363101,2474.1,2473.8,3.12657459]
[1728807897463,1.48363101,2474.1,2473.8,3.0]
[1728807898345,1.48363101,2474.1,2473.8,7.04236]
[1728807900455,2.3325262,2474.1,2473.8,7.04236]
[1728807901191,1.48363101,2474.0,2473.7,0.48334687]
[1728807901391,2.26093101,2474.0,2473.8,0.1265786]
[1728807901700,2.26093101,2474.0,2473.6,8.12728492]
[1728807901899,2.26093101,2474.0,2473.7,0.12657731]
[1728807902105,2.26093101,2474.0,2473.8,0.12657731]
[1728807902286,2.26093101,2474.0,2473.6,9.53258091]
[1728807902495,2.26093101,2474.0,2473.7,0.12657725]
[1728807902667,2.26093101,2474.0,2473.8,0.12657725]
[1728807903011,2.26093101,2474.0,2473.6,7.34438492]
[1728807903302,3.1098262,2474.0,2473.7,0.12657958]
[1728807903482,3.1098262,2474.0,2473.8,0.12657958]
[1728807903684,1.48363101,2473.9,2473.6,7.34438492]
[1728807904000,1.48363101,2473.9,2473.7,0.12657984]
[1728807904294,1.48363101,2473.9,2473.8,0.12657984]
[1728807905360,1.48363101,2473.9,2473.8,0.12658153]
[1728807905773,2.32606121,2473.9,2473.8,0.12658153]
[1728807906062,4.22798331,2473.9,2473.8,0.12658153]
[1728807906300,4.22798331,2473.9,2473.8,0.12658246]
[1728807907203,3.38555311,2473.9,2473.8,0.12658246]
[1728807907907,3.38555311,2473.9,2473.6,0.30193517]
[1728807908213,2.3325262,2473.9,2473.7,0.12658284]
[1728807908399,2.3325262,2473.9,2473.6,0.30193517]
[1728807908602,2.3325262,2473.9,2473.7,0.12658247]
[1728807908902,2.3325262,2473.9,2473.6,0.30195025]
[1728807909108,2.3325262,2473.9,2473.6,0.30195435]
[1728807909321,2.3325262,2473.9,2473.7,0.12658379]
[1728807913322,1.48363101,2473.9,2473.7,0.12658379]
[1728807913528,1.48363101,2473.8,2473.7,0.12658379]
[1728807913715,1.48363101,2473.8,2473.7,0.25316743]
[1728807915335,1.48363101,2473.8,2473.7,0.12658379]
[1728807916123,1.48363101,2473.8,2473.5,0.30188228]
[1728807916322,1.48363101,2473.8,2473.6,0.1265899]
[1728807916619,1.48363101,2473.8,2473.5,0.30188228]
[1728807916833,1.48363101,2473.8,2473.6,0.12658989]
[1728807917022,1.48363101,2473.8,2473.5,0.30188228]
[1728807917220,1.48363101,2473.8,2473.6,0.12658989]
[1728807917562,1.48363101,2473.8,2473.5,0.30188228]
[1728807917705,1.48363101,2473.8,2473.6,0.12659043]
[1728807917901,2.73036492,2473.8,2473.4,3.08478228]
[1728807918120,2.73036492,2473.8,2473.5,0.12659089]
[1728807918431,1.48363101,2473.7,2473.6,0.12659089]
[1728807918609,2.73036492,2473.8,2473.6,0.12659089]
[1728807918791,2.73036492,2473.8,2473.4,3.08478228]
[1728807918990,2.73036492,2473.8,2473.5,0.12659041]
[1728807919230,2.73036492,2473.8,2473.6,0.12659041]
[1728807919532,2.73036492,2473.8,2473.4,3.08478228]
[1728807919830,2.24063101,2473.8,2473.5,0.12659069]
[1728807920029,2.24063101,2473.8,2473.6,0.12659069]
[1728807920394,2.33252223,2473.9,2473.5,4.59282]
[1728807920590,2.33252223,2473.9,2473.6,0.12658995]
[1728807920851,1.48363101,2473.8,2473.5,5.35292]
[1728807921012,1.48363101,2473.8,2473.6,0.12659011]
[1728807921334,1.48363101,2473.8,2473.5,5.35292]
[1728807921641,1.48363101,2473.8,2473.6,0.12659011]
[1728807921794,1.48363101,2473.8,2473.5,5.35292]
[1728807922131,1.48363101,2473.8,2473.6,0.12659014]
[1728807922329,1.48363101,2473.8,2473.5,5.35292]
[1728807922529,1.48363101,2473.8,2473.6,0.12659013]
[1728807922754,1.48363101,2473.8,2473.5,5.35292]
[1728807922930,1.48363101,2473.8,2473.6,0.12659016]
[1728807923131,1.48363101,2473.8,2473.5,5.35292]
[1728807923332,1.48363101,2473.8,2473.6,0.12658944]
[1728807923527,1.48363101,2473.8,2473.5,5.35292]
[1728807923833,2.33252223,2473.9,2473.6,0.12658981]
[1728807924032,2.33252223,2473.9,2473.7,0.12658929]
[1728807924352,2.33252223,2473.9,2473.5,5.35292]
[1728807924652,2.33252223,2473.9,2473.6,0.1265893]
[1728807924865,2.33252223,2473.9,2473.7,0.1265893]
[1728807925066,2.33252223,2473.9,2473.5,5.35292]
[1728807925217,2.33252223,2473.9,2473.6,0.12658941]
[1728807925424,1.90185712,2473.8,2473.5,5.35292]
[1728807925649,1.90185712,2473.8,2473.6,0.12658944]
[1728807925853,1.90185712,2473.8,2473.5,5.35292]
[1728807926155,1.90185712,2473.8,2473.6,0.12658985]
[1728807926360,1.90185712,2473.8,2473.5,5.35292]
[1728807926656,1.90185712,2473.8,2473.6,0.12659006]
[1728807926826,1.90185712,2473.8,2473.5,5.35292]
[1728807927032,1.90185712,2473.8,2473.6,0.12658941]
[1728807927249,1.90185712,2473.8,2473.5,5.35292]
[1728807927649,1.90185712,2473.8,2473.5,4.80292]
[1728807927848,0.84889122,2473.8,2473.6,0.12658941]
[1728807928096,1.90194318,2473.8,2473.5,4.80292]
[1728807928358,1.90194318,2473.8,2473.6,0.12658938]
[1728807928560,1.90194318,2473.8,2473.5,4.80292]
[1728807928722,1.90194318,2473.8,2473.6,0.12658966]
[1728807928918,1.90194318,2473.8,2473.5,4.80292]
[1728807929116,1.90194318,2473.8,2473.6,0.12658947]
[1728807929333,1.90194318,2473.8,2473.5,4.80292]
[1728807929566,1.90194318,2473.8,2473.6,0.12658949]
[1728807929861,1.90194318,2473.8,2473.5,5.10492676]
[1728807930059,1.90194318,2473.8,2473.6,0.12658949]
[1728807930265,1.90194318,2473.8,2473.5,5.10492676]
[1728807930424,1.90194318,2473.8,2473.6,0.12658947]
[1728807930629,1.90194318,2473.8,2473.5,5.10492676]
[1728807930926,1.90194318,2473.8,2473.6,0.12658949]
[1728807931167,1.90194318,2473.7,2473.5,5.10492676]
[1728807931323,0.84889122,2473.7,2473.6,0.12658948]
[1728807932057,0.92720509,2473.7,2473.6,0.12658948]
[1728807932243,1.98056087,2473.7,2473.6,0.12658948]
[1728807932767,1.9806884,2473.7,2473.6,0.12658948]
[1728807934880,1.9806884,2473.7,2473.5,0.7601]
[1728807935046,0.92720509,2473.7,2473.6,0.12659142]
[1728807935273,1.98085481,2473.7,2473.6,0.12659142]
[1728807936170,1.98085481,2473.7,2473.5,0.7601]
[1728807936334,0.92720509,2473.7,2473.5,0.7601]
[1728807944267,1.05384152,2473.6,2473.5,0.7601]
[1728807944448,1.98071787,2473.6,2473.5,1.0622748]
[1728807946652,1.98071787,2473.6,2473.5,0.7601]
[1728807946862,0.07798513,2473.6,2473.5,1.06231427]
[1728807947265,1.98086481,2473.6,2473.5,1.06231427]
[1728807948756,1.13197359,2473.6,2473.5,1.06231427]
[1728807948954,1.98086481,2473.6,2473.5,1.06231427]
[1728807949156,0.07798513,2473.6,2473.5,8.10516427]
[1728807949386,1.13208003,2473.6,2473.5,1.06231427]
[1728807949695,1.13208214,2473.6,2473.5,1.06231427]
[1728807949866,0.07798513,2473.6,2473.5,1.06231427]
[1728807950070,1.13207668,2473.6,2473.5,1.06231427]
[1728807950274,1.9809679,2473.6,2473.5,1.06231427]
[1728807950617,1.9809679,2473.6,2473.5,1.06238443]
[1728807951789,1.98109443,2473.6,2473.5,1.06238443]
[1728807954420,1.98109443,2473.6,2473.5,1.06241734]
[1728807954902,1.98109443,2473.6,2473.5,8.10526734]
[1728807956577,1.98124824,2473.6,2473.5,1.06241734]
[1728807958290,1.98124824,2473.6,2473.5,1.06244939]
[1728807960382,1.98124824,2473.6,2473.5,0.30234939]
[1728807960901,1.98140136,2473.6,2473.5,0.30234939]
[1728807965656,1.98148669,2473.6,2473.5,0.30234939]
[1728807966217,1.98148669,2473.6,2473.4,7.04301]
[1728807966427,0.92687635,2473.6,2473.5,0.3023908]
[1728807966589,1.98150901,2473.6,2473.5,0.30239602]
[1728807968524,1.98150901,2473.6,2473.4,7.04301]
[1728807968702,0.92687635,2473.6,2473.4,7.04301]
[1728807968904,0.92687635,2473.6,2473.5,0.30241458]